fUSD/lending_fUSD_20240712
["ID","MTS","AMOUNT","RATE_DAILY","PERIOD"]
[331814101,1720769469663,-434.64368589,0.00014082,2]
[331814102,1720769469673,-500.0,0.00014082,2]
[331814103,1720769469682,-500.0,0.00014082,2]
[331814104,1720769469691,-165.01,0.00014082,2]
[331814105,1720769469699,-150.0,0.0001409,2]
[331814106,1720769469709,-1200.0,0.0001409,2]
[331814107,1720769469718,-500.0,0.00014136,2]
[331814108,1720769469727,-500.0,0.00014136,2]
[331814109,1720769469736,-500.0,0.00014136,2]
[331814110,1720769469744,-890.77,0.00014136,2]
[331814111,1720769469753,-500.0,0.00014136,2]
[331814112,1720769469762,-500.0,0.00014136,2]
[331814113,1720769469771,-500.0,0.00014136,2]
[331814114,1720769469779,-500.0,0.00014136,2]
[331814115,1720769469788,-500.0,0.00014136,2]
[331814116,1720769469797,-500.0,0.00014136,2]
[331814117,1720769469806,-1888.81,0.00014136,2]
[331814118,1720769469816,-953.95,0.00014136,2]
[331814119,1720769469824,-151.0,0.00014136,2]
[331814120,1720769469834,-500.0,0.00014136,2]
[331814121,1720769469843,-500.0,0.00014136,2]
[331814122,1720769469851,-500.0,0.00014136,2]
[331814123,1720769469860,-500.0,0.00014136,2]
[331814124,1720769469869,-500.0,0.00014136,2]
[331814125,1720769469878,-500.0,0.00014136,2]
[331814126,1720769469887,-500.0,0.00014136,2]
[331814127,1720769469896,-500.0,0.00014136,2]
[331814128,1720769469905,-500.0,0.00014136,2]
[331814129,1720769469914,-500.0,0.00014136,2]
[331814130,1720769469923,-398.61394542,0.00014136,2]
[331814131,1720769469932,-500.0,0.00014136,2]
[331814132,1720769469941,-500.0,0.00014136,2]
[331814133,1720769469950,-500.0,0.00014136,2]
[331814134,1720769469959,-500.0,0.00014136,2]
[331814135,1720769469968,-500.0,0.00014136,2]
[331814136,1720769469978,-500.0,0.00014136,2]
[331814137,1720769470038,-695.2,0.00014136,2]
[331814138,1720769470047,-500.0,0.00014136,2]
[331814139,1720769470056,-500.0,0.00014136,2]
[331814140,1720769470066,-500.0,0.00014136,2]
[331814141,1720769470075,-617.98,0.00014136,2]
[331814142,1720769470083,-733.64,0.00014136,2]
[331814143,1720769470092,-772.67,0.00014136,2]
[331814144,1720769470101,-500.0,0.00014136,2]
[331814145,1720769470110,-500.0,0.00014136,2]
[331814146,1720769470118,-558.64528621,0.00014136,2]
[331814147,1720769470127,-238.31,0.00014136,2]
[331814148,1720769470136,-500.0,0.00014136,2]
[331814149,1720769470145,-500.0,0.00014136,2]
[331814150,1720769470153,-661.29,0.00014136,2]
[331814151,1720769470162,-597.94952864,0.00014136,2]
[331814152,1720769470171,-462.93,0.00014136,2]
[331814153,1720769470180,-500.0,0.00014136,2]
[331814154,1720769470189,-500.0,0.00014136,2]
[331814155,1720769470198,-500.0,0.00014136,2]
[331814156,1720769470207,-500.0,0.00014136,2]
[331814157,1720769470216,-500.0,0.00014136,2]
[331814158,1720769470225,-500.0,0.00014136,2]
[331814159,1720769470238,-500.0,0.00014136,2]
[331814160,1720769470248,-500.0,0.00014136,2]
[331814161,1720769470257,-500.0,0.00014136,2]
[331814162,1720769470265,-500.0,0.00014136,2]
[331814163,1720769470276,-500.0,0.00014136,2]
[331814164,1720769470286,-500.0,0.00014136,2]
[331814165,1720769470297,-626.16,0.00014136,2]
[331814166,1720769470307,-500.0,0.00014136,2]
[331814167,1720769470317,-500.0,0.00014136,2]
[331814168,1720769470326,-500.0,0.00014136,2]
[331814169,1720769470335,-500.0,0.00014136,2]
[331814170,1720769470344,-500.0,0.00014136,2]
[331814171,1720769470354,-500.0,0.00014136,2]
[331814172,1720769470363,-500.0,0.00014136,2]
[331814173,1720769470375,-500.0,0.00014136,2]
[331814174,1720769470385,-500.0,0.00014136,2]
[331814175,1720769470394,-500.0,0.00014136,2]
[331814176,1720769470404,-500.0,0.00014136,2]
[331814177,1720769470414,-500.0,0.00014136,2]
[331814178,1720769470425,-415.45713783,0.00014136,2]
[331814179,1720769470435,-500.0,0.00014136,2]
[331814180,1720769470446,-500.0,0.00014136,2]
[331814181,1720769470456,-170.39,0.00014136,2]
[331814182,1720769470466,-500.0,0.00014136,2]
[331814183,1720769470475,-500.0,0.00014136,2]
[331814184,1720769470484,-500.0,0.00014136,2]
[331814185,1720769470493,-500.0,0.00014136,2]
[331814186,1720769470502,-807.28,0.00014136,2]
[331814187,1720769470511,-376.15980997,0.00014136,2]
[331814188,1720769470520,-500.0,0.00014136,2]
[331814189,1720769470529,-500.0,0.00014136,2]
[331814190,1720769470538,-169.95,0.00014136,2]
[331814191,1720769470547,-500.0,0.00014136,2]
[331814192,1720769470556,-756.36,0.00014136,2]
[331814193,1720769470566,-354.88060014,0.00014136,2]
[331814194,1720769470575,-500.0,0.00014136,2]
[331814195,1720769470584,-525.97,0.00014136,2]
[331814196,1720769470593,-500.0,0.00014136,2]
[331814197,1720769470602,-500.0,0.00014136,2]
[331814198,1720769470611,-500.0,0.00014136,2]
[331814199,1720769470619,-500.0,0.00014136,2]
[331814200,1720769470628,-500.0,0.00014136,2]
[331814201,1720769470638,-500.0,0.00014136,2]
[331814202,1720769470646,-1369.38,0.00014136,2]
[331814203,1720769470655,-500.0,0.00014136,2]
[331814204,1720769470664,-173.47,0.00014136,2]
[331814205,1720769470673,-283.70689786,0.00014136,2]
[331814206,1720769470683,-500.0,0.00014136,2]
[331814207,1720769470692,-500.0,0.00014136,2]
[331814208,1720769470701,-1396.49,0.00014136,2]
[331814209,1720769470709,-500.0,0.00014136,2]
[331814210,1720769470718,-500.0,0.00014136,2]
[331814211,1720769470727,-500.0,0.00014136,2]
[331814212,1720769470736,-500.0,0.00014136,2]
[331814213,1720769470745,-500.0,0.00014136,2]
[331814214,1720769470754,-500.0,0.00014136,2]
[331814215,1720769470763,-506.52,0.00014136,2]
[331814216,1720769470771,-794.37,0.00014136,2]
[331814217,1720769470781,-500.0,0.00014136,2]
[331814218,1720769470790,-500.0,0.00014136,2]
[331814219,1720769470799,-500.0,0.00014136,2]
[331814220,1720769470808,-500.0,0.00014136,2]
[331814221,1720769470819,-500.0,0.00014136,2]
[331814222,1720769470828,-500.0,0.00014136,2]
[331814223,1720769470837,-500.0,0.00014136,2]
[331814224,1720769470846,-500.0,0.00014136,2]
[331814225,1720769470855,-500.0,0.00014136,2]
[331814226,1720769470864,-546.08,0.00014136,2]
[331814227,1720769470873,-500.0,0.00014136,2]
[331814228,1720769470882,-1703.09,0.00014136,2]
[331814229,1720769470891,-500.0,0.00014136,2]
[331814230,1720769470901,-500.0,0.00014136,2]
[331814231,1720769470910,-500.0,0.00014136,2]
[331814232,1720769470919,-500.0,0.00014136,2]
[331814233,1720769470928,-500.0,0.00014136,2]
[331814234,1720769470938,-500.0,0.00014136,2]
[331814235,1720769470946,-500.0,0.00014136,2]
[331814236,1720769470956,-488.47042413,0.00014136,2]
[331814237,1720769470966,-500.0,0.00014136,2]
[331814238,1720769470975,-500.0,0.00014136,2]
[331814239,1720769470984,-640.41747583,0.00014136,2]
[331814240,1720769470994,-825.82,0.00014136,2]
[331814241,1720769471004,-500.0,0.00014136,2]
[331814242,1720769471013,-500.0,0.00014136,2]
[331814243,1720769471022,-790.87,0.00014136,2]
[331814244,1720769471031,-500.0,0.00014136,2]
[331814245,1720769471040,-500.0,0.00014136,2]
[331814246,1720769471049,-522.5,0.00014136,2]
[331814247,1720769471059,-500.0,0.00014136,2]
[331814248,1720769471068,-636.29959695,0.00014136,2]
[331814249,1720769471077,-500.0,0.00014136,2]
[331814250,1720769471087,-500.0,0.00014136,2]
[331814251,1720769471096,-500.0,0.00014136,2]
[331814252,1720769471105,-570.43914199,0.00014136,2]
[331814253,1720769471114,-500.0,0.00014136,2]
[331814254,1720769471123,-500.0,0.00014136,2]
[331814255,1720769471132,-744.14,0.00014136,2]
[331814256,1720769471141,-500.0,0.00014136,2]
[331814257,1720769471150,-500.0,0.00014136,2]
[331814258,1720769471159,-1722.11,0.00014136,2]
[331814259,1720769471168,-500.0,0.00014136,2]
[331814260,1720769471177,-500.0,0.00014136,2]
[331814261,1720769471187,-654.54,0.00014136,2]
[331814262,1720769471196,-500.0,0.00014136,2]
[331814263,1720769471205,-500.0,0.00014136,2]
[331814264,1720769471214,-500.0,0.00014136,2]
[331814265,1720769471223,-500.0,0.00014136,2]
[331814266,1720769471235,-500.0,0.00014136,2]
[331814267,1720769471244,-500.0,0.00014136,2]
[331814268,1720769471253,-500.0,0.00014136,2]
[331814269,1720769471263,-500.0,0.00014136,2]
[331814270,1720769471275,-500.0,0.00014136,2]
[331814271,1720769471285,-881.37,0.00014136,2]
[331814272,1720769471295,-877.4,0.00014136,2]
[331814273,1720769471304,-929.18,0.00014136,2]
[331814274,1720769471314,-770.97,0.00014136,2]
[331814275,1720769471323,-910.54,0.00014136,2]
[331814276,1720769471332,-500.0,0.00014136,2]
[331814277,1720769471341,-500.0,0.00014136,2]
[331814278,1720769471350,-500.0,0.00014136,2]
[331814279,1720769471359,-500.0,0.00014136,2]
[331814280,1720769471368,-1159.9,0.00014136,2]
[331814281,1720769471378,-500.0,0.00014136,2]
[331814282,1720769471387,-500.0,0.00014136,2]
[331814283,1720769471396,-510.84,0.00014136,2]
[331814284,1720769471406,-500.0,0.00014136,2]
[331814285,1720769471415,-1266.78,0.00014136,2]
[331814286,1720769471424,-500.0,0.00014136,2]
[331814287,1720769471433,-769.96,0.00014136,2]
[331814288,1720769471442,-500.0,0.00014136,2]
[331814289,1720769471451,-972.78,0.00014136,2]
[331814290,1720769471461,-500.0,0.00014136,2]
[331814291,1720769471470,-500.0,0.00014136,2]
[331814292,1720769471480,-500.0,0.00014136,2]
[331814293,1720769471489,-500.0,0.00014136,2]
[331814294,1720769471498,-594.19,0.00014136,2]
[331814295,1720769471507,-500.0,0.00014136,2]
[331814296,1720769471516,-500.0,0.00014136,2]
[331814297,1720769471525,-739.85,0.00014136,2]
[331814298,1720769471534,-201.52438107,0.00014136,2]
[331814299,1720769471543,-500.0,0.00014136,2]
[331814300,1720769471552,-500.0,0.00014136,2]
[331814301,1720769471560,-500.0,0.00014136,2]
[331814302,1720769471570,-476.04144642,0.00014136,2]
[331814303,1720769471579,-500.0,0.00014136,2]
[331814304,1720769471588,-540.0,0.00014146,2]
[331814305,1720769471597,-2000.0,0.00014167,2]
[331814306,1720769471606,-200.0,0.00014167,2]
[331814307,1720769471615,-2000.0,0.00014167,2]
[331814308,1720769471624,-200.0,0.00014167,2]
[331814309,1720769471633,-2000.0,0.00014167,2]
[331814310,1720769471642,-200.0,0.00014167,2]
[331814311,1720769471651,-574.99,0.00014176,2]
[331814312,1720769471660,-574.99,0.00014181,2]
[331814313,1720769471669,-500.0,0.00014181,2]
[331814314,1720769471678,-500.0,0.00014181,2]
[331814315,1720769471687,-220.513943,0.00014182,2]
[331814316,1720769471697,-153.744282,0.00014182,2]
[331814317,1720769471706,-151.0,0.00014182,2]
[331814318,1720769471715,-151.0,0.00014182,2]
[331814319,1720769471724,-151.0,0.00014182,2]
[331814320,1720769471733,-151.0,0.00014182,2]
[331814321,1720769471742,-151.0,0.00014182,2]
[331814322,1720769471750,-151.0,0.00014182,2]
[331814323,1720769471759,-151.0,0.00014182,2]
[331814324,1720769471768,-151.0,0.00014182,2]
[331814325,1720769471777,-151.0,0.00014182,2]
[331814326,1720769471786,-151.0,0.00014182,2]
[331814327,1720769471797,-17058.69762788,0.00014182,2]
[331814328,1720769472042,-4696.85625089,0.00014182,2]
[331814329,1720769472054,-3244.44612123,0.00014182,2]
[331814330,1720769472065,-12831.27524308,0.00014182,2]
[331814331,1720769472076,-1876.900965,0.00014182,2]
[331814332,1720769472088,-2662.14219701,0.00014182,2]
[331814333,1720769472099,-2629.68159491,0.00014182,2]
[331814334,1720769472109,-2038.64325317,0.00014182,2]
[331814335,1720769472119,-2108.58031139,0.00014182,2]
[331814336,1720769472134,-2506.77543946,0.00014182,2]
[331814337,1720769472146,-2604.69232305,0.00014182,2]
[331814338,1720769472161,-7969.17193469,0.00014182,2]
[331814339,1720769472172,-3386.27530717,0.00014182,2]
[331814340,1720769472184,-1340.26476761,0.00014182,2]
[331814341,1720769472196,-1258.28539142,0.00014182,2]
[331814342,1720769472207,-3825.95452521,0.00014182,2]
[331814343,1720769472217,-6832.59863368,0.00014182,2]
[331814344,1720769472230,-4209.38284784,0.00014182,2]
[331814345,1720769472245,-775.84848916,0.00014182,2]
[331814346,1720769472256,-1061.95558653,0.00014182,2]
[331814347,1720769472268,-584.18096118,0.00014182,2]
[331814348,1720769472280,-313.27,0.00014182,2]
[331814349,1720769472292,-254.99999,0.00014182,2]
[331814350,1720769472303,-10967.76349161,0.00014182,2]
[331814351,1720769472313,-6525.571319,0.00014182,2]
[331814352,1720769472325,-13474.428681,0.00014182,2]
[331814353,1720769472335,-13822.40837832,0.00014182,2]
[331814354,1720769472345,-4481.52948842,0.00014182,2]
[331814355,1720769472356,-465.2888313,0.00014182,2]
[331814356,1720769472367,-4756.47301503,0.00014182,2]
[331814357,1720769472378,-11368.28594332,0.00014182,2]
[331814358,1720769472387,-17004.41193803,0.00014182,2]
[331814359,1720769472532,-454.18508886,0.00014038,2]
[331814360,1720769472544,-702.23691114,0.00014038,2]
[331814361,1720769472554,-2995.58806197,0.00014182,2]
[331814362,1720769472563,-14083.98669846,0.00014182,2]
[331814363,1720769472573,-25000.0,0.00014182,2]
[331814364,1720769472583,-25000.0,0.00014182,2]
[331814365,1720769472593,-25000.0,0.00014182,2]
[331814366,1720769472604,-25000.0,0.00014182,2]
[331814367,1720769472614,-10176.39326446,0.00014182,2]
[331814368,1720769472624,-193.14835216,0.0001419,2]
[331814369,1720769472634,-388.93920938,0.0001419,2]
[331814370,1720769472645,-890.77,0.0001419,2]
[331814371,1720769472655,-500.0,0.0001419,2]
[331814372,1720769472665,-500.0,0.0001419,2]
[331814373,1720769472675,-500.0,0.0001419,2]
[331814374,1720769472685,-500.0,0.0001419,2]
[331814375,1720769472694,-500.0,0.0001419,2]
[331814376,1720769472704,-500.0,0.0001419,2]
[331814377,1720769472714,-235.53918039,0.0001419,2]
[331814378,1720769472724,-500.0,0.0001419,2]
[331814379,1720769472733,-500.0,0.0001419,2]
[331814380,1720769472742,-500.0,0.0001419,2]
[331814381,1720769472752,-290.92802114,0.0001419,2]
[331814382,1720769472762,-695.2,0.0001419,2]
[331814383,1720769472771,-500.0,0.0001419,2]
[331814384,1720769472781,-733.64,0.0001419,2]
[331814385,1720769472790,-500.0,0.0001419,2]
[331814386,1720769472799,-334.25045192,0.0001419,2]
[331814387,1720769472810,-500.0,0.0001419,2]
[331814388,1720769472821,-574.99,0.0001419,2]
[331814389,1720769472831,-500.0,0.0001419,2]
[331814390,1720769472840,-500.0,0.0001419,2]
[331814391,1720769472850,-500.0,0.0001419,2]
[331814392,1720769472861,-193.39545501,0.0001419,2]
[331814393,1720769472873,-306.60454499,0.0001419,2]
[331814394,1720769472883,-420.26,0.0001419,2]
[331814395,1720769472892,-500.0,0.0001419,2]
[331814396,1720769472902,-500.0,0.0001419,2]
[331814397,1720769472912,-500.0,0.0001419,2]
[331814398,1720769472921,-500.0,0.0001419,2]
[331814399,1720769472932,-500.0,0.0001419,2]
[331814400,1720769472943,-500.0,0.0001419,2]
[331814401,1720769472954,-794.37,0.0001419,2]
[331814402,1720769472964,-500.0,0.0001419,2]
[331814403,1720769472974,-446.98493271,0.0001419,2]
[331814404,1720769472983,-500.0,0.0001419,2]
[331814405,1720769472992,-500.0,0.0001419,2]
[331814406,1720769473002,-500.0,0.0001419,2]
[331814407,1720769473012,-500.0,0.0001419,2]
[331814408,1720769473023,-500.0,0.0001419,2]
[331814409,1720769473033,-500.0,0.0001419,2]
[331814410,1720769473044,-500.0,0.0001419,2]
[331814411,1720769473055,-500.0,0.0001419,2]
[331814412,1720769473065,-500.0,0.0001419,2]
[331814413,1720769473076,-500.0,0.0001419,2]
[331814414,1720769473086,-500.0,0.0001419,2]
[331814415,1720769473095,-500.0,0.0001419,2]
[331814416,1720769473108,-500.0,0.0001419,2]
[331814417,1720769473118,-500.0,0.0001419,2]
[331814418,1720769473127,-500.0,0.00014191,2]
[331814419,1720769473137,-1888.81,0.00014191,2]
[331814420,1720769473147,-953.95,0.00014191,2]
[331814421,1720769473156,-500.0,0.00014191,2]
[331814422,1720769473166,-500.0,0.00014191,2]
[331814423,1720769473176,-500.0,0.00014191,2]
[331814424,1720769473187,-395.42528032,0.00014191,2]
[331814425,1720769473197,-552.97971349,0.00014191,2]
[331814426,1720769473208,-500.0,0.00014191,2]
[331814427,1720769473219,-500.0,0.00014191,2]
[331814428,1720769473230,-500.0,0.00014191,2]
[331814429,1720769473244,-388.73157362,0.00014191,2]
[331814430,1720769473254,-500.0,0.00014191,2]
[331814431,1720769473263,-500.0,0.00014191,2]
[331814432,1720769473274,-500.0,0.00014191,2]
[331814433,1720769473284,-617.98,0.00014191,2]
[331814434,1720769473295,-772.67,0.00014191,2]
[331814435,1720769473308,-500.0,0.00014191,2]
[331814436,1720769473320,-500.0,0.00014191,2]
[331814437,1720769473330,-216.97010696,0.00014191,2]
[331814438,1720769473339,-500.0,0.00014191,2]
[331814439,1720769473349,-500.0,0.00014191,2]
[331814440,1720769473359,-500.0,0.00014191,2]
[331814441,1720769473368,-500.0,0.00014191,2]
[331814442,1720769473378,-500.0,0.00014191,2]
[331814443,1720769473387,-500.0,0.00014191,2]
[331814444,1720769473398,-500.0,0.00014191,2]
[331814445,1720769473410,-500.0,0.00014191,2]
[331814446,1720769473422,-626.16,0.00014191,2]
[331814447,1720769473432,-500.0,0.00014191,2]
[331814448,1720769473443,-500.0,0.00014191,2]
[331814449,1720769473452,-500.0,0.00014191,2]
[331814450,1720769473463,-500.0,0.00014191,2]
[331814451,1720769473474,-500.0,0.00014191,2]
[331814452,1720769473486,-165.46017064,0.00014191,2]
[331814453,1720769473496,-500.0,0.00014191,2]
[331814454,1720769473508,-500.0,0.00014191,2]
[331814455,1720769473519,-500.0,0.00014191,2]
[331814456,1720769473528,-365.58278321,0.00014191,2]
[331814457,1720769473538,-170.39,0.00014191,2]
[331814458,1720769473548,-500.0,0.00014191,2]
[331814459,1720769473558,-500.0,0.00014191,2]
[331814460,1720769473567,-807.28,0.00014191,2]
[331814461,1720769473576,-500.0,0.00014191,2]
[331814462,1720769473586,-500.0,0.00014191,2]
[331814463,1720769473595,-500.0,0.00014191,2]
[331814464,1720769473605,-756.36,0.00014191,2]
[331814465,1720769473615,-500.0,0.00014191,2]
[331814466,1720769473624,-525.97,0.00014191,2]
[331814467,1720769473636,-500.0,0.00014191,2]
[331814468,1720769473648,-500.0,0.00014191,2]
[331814469,1720769473659,-500.0,0.00014191,2]
[331814470,1720769473671,-500.0,0.00014191,2]
[331814471,1720769473681,-1369.38,0.00014191,2]
[331814472,1720769473692,-500.0,0.00014191,2]
[331814473,1720769473937,-500.0,0.00014191,2]
[331814474,1720769473949,-500.0,0.00014191,2]
[331814475,1720769473960,-1396.49,0.00014191,2]
[331814476,1720769473970,-500.0,0.00014191,2]
[331814477,1720769473980,-500.0,0.00014191,2]
[331814478,1720769473991,-500.0,0.00014191,2]
[331814479,1720769474001,-500.0,0.00014191,2]
[331814480,1720769474012,-506.52,0.00014191,2]
[331814481,1720769474022,-500.0,0.00014191,2]
[331814482,1720769474032,-500.0,0.00014191,2]
[331814483,1720769474043,-500.0,0.00014191,2]
[331814484,1720769474053,-500.0,0.00014191,2]
[331814485,1720769474062,-500.0,0.00014191,2]
[331814486,1720769474073,-500.0,0.00014191,2]
[331814487,1720769474082,-546.08,0.00014191,2]
[331814488,1720769474091,-1703.09,0.00014191,2]
[331814489,1720769474101,-183.07462513,0.00014191,2]
[331814490,1720769474145,-316.92537487,0.00014191,2]
[331814491,1720769474155,-500.0,0.00014191,2]
[331814492,1720769474164,-500.0,0.00014191,2]
[331814493,1720769474174,-500.0,0.00014191,2]
[331814494,1720769474183,-500.0,0.00014191,2]
[331814495,1720769474193,-500.0,0.00014191,2]
[331814496,1720769474202,-500.0,0.00014191,2]
[331814497,1720769474211,-500.0,0.00014191,2]
[331814498,1720769474221,-825.82,0.00014191,2]
[331814499,1720769474231,-500.0,0.00014191,2]
[331814500,1720769474243,-500.0,0.00014191,2]
[331814501,1720769474253,-790.87,0.00014191,2]
[331814502,1720769474262,-500.0,0.00014191,2]
[331814503,1720769474271,-522.5,0.00014191,2]
[331814504,1720769474282,-500.0,0.00014191,2]
[331814505,1720769474292,-500.0,0.00014191,2]
[331814506,1720769474301,-500.0,0.00014191,2]
[331814507,1720769474312,-154.35516115,0.00014191,2]
[331814508,1720769474322,-223.03444262,0.00014191,2]
[331814509,1720769474331,-744.14,0.00014191,2]
[331814510,1720769474341,-500.0,0.00014191,2]
[331814511,1720769474351,-500.0,0.00014191,2]
[331814512,1720769474360,-1722.11,0.00014191,2]
[331814513,1720769474369,-500.0,0.00014191,2]
[331814514,1720769474379,-500.0,0.00014191,2]
[331814515,1720769474388,-654.54,0.00014191,2]
[331814516,1720769474398,-322.20233671,0.00014191,2]
[331814517,1720769474408,-500.0,0.00014191,2]
[331814518,1720769474418,-500.0,0.00014191,2]
[331814519,1720769474427,-500.0,0.00014191,2]
[331814520,1720769474436,-500.0,0.00014191,2]
[331814521,1720769474446,-500.0,0.00014191,2]
[331814522,1720769474455,-500.0,0.00014191,2]
[331814523,1720769474465,-503.7087139,0.00014191,2]
[331814524,1720769474474,-881.37,0.00014191,2]
[331814525,1720769474484,-877.4,0.00014191,2]
[331814526,1720769474493,-929.18,0.00014191,2]
[331814527,1720769474502,-770.97,0.00014191,2]
[331814528,1720769474512,-910.54,0.00014191,2]
[331814529,1720769474521,-500.0,0.00014191,2]
[331814530,1720769474530,-500.0,0.00014191,2]
[331814531,1720769474540,-500.0,0.00014191,2]
[331814532,1720769474549,-1159.9,0.00014191,2]
[331814533,1720769474559,-510.84,0.00014191,2]
[331814534,1720769474568,-500.0,0.00014191,2]
[331814535,1720769474578,-1266.78,0.00014191,2]
[331814536,1720769474587,-500.0,0.00014191,2]
[331814537,1720769474596,-769.96,0.00014191,2]
[331814538,1720769474605,-500.0,0.00014191,2]
[331814539,1720769474615,-972.78,0.00014191,2]
[331814540,1720769474624,-500.0,0.00014191,2]
[331814541,1720769474633,-500.0,0.00014191,2]
[331814542,1720769474643,-500.0,0.00014191,2]
[331814543,1720769474652,-500.0,0.00014191,2]
[331814544,1720769474661,-739.85,0.00014191,2]
[331814545,1720769474670,-500.0,0.00014191,2]
[331814546,1720769474681,-346.99,0.00014192,2]
[331814547,1720769474690,-150.0,0.00014192,2]
[331814548,1720769474700,-424.74,0.00014192,2]
[331814549,1720769474710,-355.25,0.00014192,2]
[331814550,1720769474719,-330.0,0.00014192,2]
[331814551,1720769474728,-150.0,0.00014192,2]
[331814552,1720769474738,-150.0,0.00014192,2]
[331814553,1720769474747,-410.73,0.00014192,2]
[331814554,1720769474756,-355.25,0.00014192,2]
[331814555,1720769474766,-355.25,0.00014192,2]
[331814556,1720769474775,-355.25,0.00014192,2]
[331814557,1720769474784,-355.25,0.00014192,2]
[331814558,1720769474794,-354.44,0.00014192,2]
[331814559,1720769474803,-711.63,0.00014192,2]
[331814560,1720769474813,-1000.0,0.000142,2]
[331814561,1720769474826,-450.0,0.000142,2]
[331814562,1720769474836,-511.4,0.000142,2]
[331814563,1720769474846,-712.0,0.000142,2]
[331814564,1720769474856,-890.77,0.00014245,2]
[331814565,1720769474865,-500.0,0.00014245,2]
[331814566,1720769474874,-500.0,0.00014245,2]
[331814567,1720769474884,-500.0,0.00014245,2]
[331814568,1720769474893,-500.0,0.00014245,2]
[331814569,1720769474903,-500.0,0.00014245,2]
[331814570,1720769474912,-500.0,0.00014245,2]
[331814571,1720769474922,-500.0,0.00014245,2]
[331814572,1720769474932,-500.0,0.00014245,2]
[331814573,1720769474943,-151.56,0.00014245,2]
[331814574,1720769474953,-695.2,0.00014245,2]
[331814575,1720769474963,-500.0,0.00014245,2]
[331814576,1720769474974,-733.64,0.00014245,2]
[331814577,1720769474983,-500.0,0.00014245,2]
[331814578,1720769474993,-500.0,0.00014245,2]
[331814579,1720769475003,-361.19300661,0.00014245,2]
[331814580,1720769475013,-379.45178913,0.00014245,2]
[331814581,1720769475023,-500.0,0.00014245,2]
[331814582,1720769475033,-500.0,0.00014245,2]
[331814583,1720769475043,-398.0685942,0.00014245,2]
[331814584,1720769475052,-500.0,0.00014245,2]
[331814585,1720769475061,-500.0,0.00014245,2]
[331814586,1720769475073,-429.43646835,0.00014245,2]
[331814587,1720769475082,-500.0,0.00014245,2]
[331814588,1720769475091,-500.0,0.00014245,2]
[331814589,1720769475102,-500.0,0.00014245,2]
[331814590,1720769475112,-794.37,0.00014245,2]
[331814591,1720769475121,-512.58,0.00014245,2]
[331814592,1720769475131,-500.0,0.00014245,2]
[331814593,1720769475141,-500.0,0.00014245,2]
[331814594,1720769475150,-500.0,0.00014245,2]
[331814595,1720769475159,-500.0,0.00014245,2]
[331814596,1720769475170,-197.08221387,0.00014245,2]
[331814597,1720769475180,-235.50522925,0.00014245,2]
[331814598,1720769475190,-500.0,0.00014245,2]
[331814599,1720769475200,-500.0,0.00014245,2]
[331814600,1720769475210,-500.0,0.00014245,2]